Cogmind - Beta 15 @@@ ROGUE MODE // 2025.09.18 @ 14:49:59 Player: Petvaria Result: Self-destructed Performance ------------- Evolutions (6) 3000 Regions Visited (16) 3200 Robots Destroyed (91) 455 Value Destroyed (2305) 2305 Prototype IDs (13) 260 Alien Tech Used (0) 0 Bonus (635) 635 TOTAL SCORE: 9855 Bonus ------- High Alert Combat Kills 15 Follower Combat Kills 320 Met Data Miner 300 Cogmind --------- Core Integrity 1150/1150 Matter 300/300 Energy 100/100 System Corruption 4% Temperature Cool (0) Movement Core (50) Location -4/Factory Parts ------- > --- POWER (1) -------- (None) > --- PROPULSION (6) --- (None) > --- UTILITY (10) ----- Improved Signal Interpreter Improved Signal Interpreter Improved Hacking Suite > --- WEAPON (2) ------- (None) > --- INVENTORY (5) ---- Nuclear Pulse Array Medium Storage Unit Improved Signal Interpreter Improved Reaction Control System Peak State ------------ > --- POWER ------------ Backup Power VII > --- PROPULSION ------- VTOL Module VTOL Module Cesium-ion Thruster Xenon Bombardment Thruster Nuclear Pulse Thruster > --- UTILITY ---------- Medium Storage Unit Improved Signal Interpreter Layered Light Armor Plating Hacking Suite Hacking Suite Hacking Suite Makeshift Hacking Suite > --- WEAPON ----------- Datajack Chainsword > --- INVENTORY -------- Improved Deuterium Engine Light Fission Core Light Fission Core Cesium-ion Thruster Nuclear Pulse Thruster Nuclear Pulse Thruster Nuclear Pulse Thruster Reaction Control System Hacking Suite Hacking Suite [Rating: 53] Favorites ----------- Power Light Nuclear Core Engine Light Ion Engine Power Core Light Nuclear Core Propulsion Light Treads Treads Light Treads Hover Unit Backup Propulsion III Flight Unit Cesium-ion Thruster Utility Hacking Suite Device Improved Sensor Array Storage Large Storage Unit Processor Improved Signal Interpreter Hackware Hacking Suite Protection Medium Armor Plating Weapon Autogun Energy Gun EM Pulse Gun Ballistic Gun Autogun Impact Weapon Flail Slashing Weapon Chainsword Piercing Weapon Spear Special Melee Weapon Datajack Build | -11 -10 -10 -9 -9 -9 -8 -8 -7 -7 -7 -7 -6 -6 -6 -5 -4 ------- Run | Yrd Mat Min Mat Min Exi Min Mat Fac Low Low Dat Pro Fac Ext Fac Fac Slots Evolved 12 | . . . 2 . . . 2 2 . . . . 2 . 2 2 Power . | . . . . . . . . . . . . . . . . . Propulsion 4 | . . . 1 . . . 1 . . . . . 1 . . 1 Utility 8 | . . . 1 . . . 1 2 . . . . 1 . 2 1 Weapon . | . . . . . . . . . . . . . . . . . Parts Attached 104 | 6 6 1 26 . . 1 13 14 . . . 1 6 14 16 . Power 10 | 1 . . 3 . . . 1 1 . . . . 1 2 1 . Engine 3 | 1 . . 1 . . . . 1 . . . . . . . . Core 7 | . . . 2 . . . 1 . . . . . 1 2 1 . Reactor . | . . . . . . . . . . . . . . . . . Propulsion 45 | 2 2 . 10 . . 1 6 7 . . . 1 1 8 7 . Treads 15 | 2 2 . 10 . . 1 . . . . . . . . . . Leg . | . . . . . . . . . . . . . . . . . Wheel . | . . . . . . . . . . . . . . . . . Hover . | . . . . . . . . . . . . . . . . . Flight 30 | . . . . . . . 6 7 . . . 1 1 8 7 . Utility 28 | 1 3 1 6 . . . 4 3 . . . . 4 2 4 . Device 5 | . . 1 . . . . . 1 . . . . 1 . 2 . Storage 3 | 1 2 . . . . . . . . . . . . . . . Processor 3 | . . . . . . . . 1 . . . . 1 . 1 . Hackware 7 | . . . . . . . 2 1 . . . . 1 2 1 . Protection 10 | . 1 . 6 . . . 2 . . . . . 1 . . . Artifact . | . . . . . . . . . . . . . . . . . Weapon 21 | 2 1 . 7 . . . 2 3 . . . . . 2 4 . Energy Gun 1 | 1 . . . . . . . . . . . . . . . . Energy Cannon . | . . . . . . . . . . . . . . . . . Ballistic Gun 12 | 1 1 . 6 . . . 2 . . . . . . . 2 . Ballistic Cannon . | . . . . . . . . . . . . . . . . . Launcher . | . . . . . . . . . . . . . . . . . Special Weapon . | . . . . . . . . . . . . . . . . . Impact Weapon 2 | . . . 1 . . . . 1 . . . . . . . . Slashing Weapon 4 | . . . . . . . . 1 . . . . . 2 1 . Piercing Weapon 1 | . . . . . . . . . . . . . . . 1 . Special Melee Weapon 1 | . . . . . . . . 1 . . . . . . . . Unidentified Prototypes 2 | . . 1 . . . . . 1 . . . . . . . . Corrupted Parts 1 | . . . . . . . . . . . . . . 1 . . System Corruption 2 | . . . . . . . . . . . . . . 2 . . Parts Lost 62 | . . . 2 . . 3 9 5 . . . 2 3 20 17 1 Power 7 | . . . . . . . 1 1 . . . . 1 2 2 . Propulsion 32 | . . . . . . 2 4 4 . . . 1 1 13 7 . Utility 15 | . . . 2 . . 1 1 . . . . 1 1 3 5 1 Weapon 8 | . . . . . . . 3 . . . . . . 2 3 . Highest Loss Streak 8 | . . . 1 . . 2 3 2 . . . 2 1 8 4 5 To Critical Strikes . | . . . . . . . . . . . . . . . . . Average Backups 11 | 4 9 15 14 15 15 14 11 7 9 10 10 9 9 5 3 4 Power . | . 1 2 1 . . . . . 1 1 1 1 2 1 . . Propulsion 6 | 2 4 7 7 10 10 9 7 4 4 4 4 3 3 . . 1 Utility 2 | . 1 4 4 2 2 2 1 1 3 4 4 4 3 3 2 3 Weapon 1 | . 1 1 1 2 2 2 1 . . . . . . . . . Tool/Special . | . . . . . . . . . . . . . . . . . Unused Backups 9 | . 4 1 . . . . . . . . . . 1 . . 3 Power . | . . . . . . . . . . . . . . . . . Propulsion 5 | . 4 . . . . . . . . . . . . . . 1 Utility 3 | . . . . . . . . . . . . . 1 . . 2 Weapon 1 | . . 1 . . . . . . . . . . . . . . Tool/Special . | . . . . . . . . . . . . . . . . . Average Slot Usage (%) 85 | . 88 100 99 100 100 95 68 73 92 92 92 90 95 71 42 18 Engine 2 | . 14 14 2 . . . . . . . . . . . . . Core 6 | . . . 8 11 11 11 5 3 7 7 7 7 5 4 1 . Treads 18 | . 28 28 32 33 33 32 13 . . . . . . . . . Flight 9 | . . . . . . . 12 27 30 30 30 30 31 23 9 . Device 1 | . . . . . . . . . 7 7 7 5 3 5 2 . Storage 9 | . 14 14 12 11 11 11 9 7 7 7 7 7 6 3 . . Processor 1 | . . . . . . . . . 7 7 7 7 6 6 10 10 Hackware 7 | . . . . . . . 5 23 23 23 23 23 22 17 14 7 Protection 10 | . 3 14 20 22 22 17 5 . . . . . 5 . . . Ballistic Gun 14 | . 25 28 21 22 22 22 13 2 . . . . . . . . Slashing Weapon 1 | . . . . . . . . . 7 7 7 7 6 5 1 . Peak Build Rating 53 | 6 12 18 18 18 18 18 33 43 43 43 43 43 53 49 36 16 Average Rating 22 | 4 7 12 16 18 18 17 18 28 43 43 43 42 49 38 22 14 On Entrance 24 | . 6 12 13 18 18 18 16 27 43 43 43 43 41 49 16 16 Naked Turns . | . . . . . . . . . . . . . . . . . Heaviest Build 48 | 12 34 41 48 43 43 43 36 19 18 18 18 18 25 25 7 . Greatest Support 69 | 40 46 46 69 60 60 63 63 21 20 20 20 21 25 28 20 3 Greatest Overweight (x) 9 | . . . . . . . 9 . . . . . 1 1 2 . Average Overweight (x) . | . . . . . . . . . . . . . . . . . Largest Inventory Capacity 15 | 8 15 15 15 15 15 15 15 10 10 10 10 10 10 10 5 5 Average Capacity 12 | 7 11 15 15 15 15 15 13 10 10 10 10 10 10 7 5 5 Most Carried 15 | 7 15 15 15 15 15 15 15 10 10 10 10 10 10 9 5 5 Average Carried 11 | 4 9 14 14 15 15 14 11 7 9 10 10 9 9 5 4 5 Final Capacity 15 | 8 15 15 15 15 15 15 10 10 10 10 10 10 10 5 5 5 Final Carried 15 | 6 15 15 15 15 15 13 9 9 10 10 10 10 9 4 5 5 Class Distribution -------------------- 32% | Scavenger-Mutant 30% | Mutant 29% | Hacker-Sprinter 4% | Hacker-Mutant Dominant Class ---------------- Mutant | -10/Materials Mutant | -10/Mines Scavenger-Mutant | -9/Materials Scavenger-Mutant | -9/Mines Scavenger-Mutant | -9/Exiles Scavenger-Mutant | -8/Mines Mutant | -8/Materials Hacker-Sprinter | -7/Factory Hacker-Sprinter | -7/Lower Caves Hacker-Sprinter | -7/Lower Caves Hacker-Sprinter | -7/Data Miner Hacker-Sprinter | -6/Proximity Caves Hacker-Sprinter | -6/Factory Hacker-Sprinter | -6/Extension Hacker-Mutant | -5/Factory Mutant | -4/Factory Resources | -11 -10 -10 -9 -9 -9 -8 -8 -7 -7 -7 -7 -6 -6 -6 -5 -4 ----------- Run | Yrd Mat Min Mat Min Exi Min Mat Fac Low Low Dat Pro Fac Ext Fac Fac Matter Collected 2906 | 187 281 62 781 161 . 212 433 239 . 29 . . 232 155 134 . Remotely . | . . . . . . . . . . . . . . . . . Salvage Created 3360 | . 313 51 1172 129 . 213 539 288 . . . . 283 140 232 . Parts 211 | . 20 8 83 10 . 10 24 12 . . . . 14 10 20 . Haulers Intercepted 5 | . 1 . 4 . . . . . . . . . . . . . Recyclers Shooed 2 | . . . . . . . . 1 . . . . 1 . . . Parts Field Recycled . | . . . . . . . . . . . . . . . . . Retrieved Matter . | . . . . . . . . . . . . . . . . . Parts Self-Destructed 6 | . . . . . . . . . 6 . . . . . . . Prevented . | . . . . . . . . . . . . . . . . . Kills | -11 -10 -10 -9 -9 -9 -8 -8 -7 -7 -7 -7 -6 -6 -6 -5 -4 ------- Run | Yrd Mat Min Mat Min Exi Min Mat Fac Low Low Dat Pro Fac Ext Fac Fac Combat Hostiles Destroyed 59 | . 5 3 23 5 . 6 9 . . . . . 1 . 7 . Melee 6 | . . . . . . . . . . . . . 1 . 5 . Guns 53 | . 5 3 23 5 . 6 9 . . . . . . . 2 . Classes Destroyed 12 | . 4 1 4 . . 1 1 . . . . . 1 . . . Worker 4 | . 1 . 2 . . . . 1 . . . . . . . . Builder 3 | . 1 . 1 . . . . . . . . . . . 1 . Hauler 5 | . 1 . 4 . . . . . . . . . . . . . Recycler 8 | . . . . . . . 2 3 . . . . 2 1 . . Operator 9 | . . . 2 . . . 3 3 . . . . . 1 . . Watcher 3 | . . . 2 . . . . . . . . . . 1 . . Swarmer 26 | . . 3 8 3 . 3 3 . . . . . . . 6 . Grunt 21 | . 5 . 9 2 . 2 3 . . . . . . . . . Brawler 2 | . . . 2 . . . . . . . . . . . . . Sentry 5 | . . . 4 . . . 1 . . . . . . . . . Hunter 3 | . . . . . . 1 2 . . . . . . . . . Programmer 2 | . . . . . . . . . . . . . 1 . 1 . Best Kill Streak 6 | . 3 3 6 3 . 3 6 2 . . . . 2 2 5 . Combat Bots Only 6 | . 2 3 6 3 . 3 4 . . . . . 1 . 4 . Max Kills in Single Turn 2 | . 2 1 2 1 . 1 1 2 . . . . 1 1 2 . Gunslinging 1 | . . . . . . . . . . . . . . . 1 . Exploded . | . . . . . . . . . . . . . . . . . Melee 1 | . . . . . . . . . . . . . 1 . 1 . Uniques/NPCs Destroyed . | . . . . . . . . . . . . . . . . . Combat | -11 -10 -10 -9 -9 -9 -8 -8 -7 -7 -7 -7 -6 -6 -6 -5 -4 -------- Run | Yrd Mat Min Mat Min Exi Min Mat Fac Low Low Dat Pro Fac Ext Fac Fac Hostile Shots Fired 834 | . 26 10 138 21 . 56 104 89 . . . 35 49 176 130 . Missed 341 | . 10 2 34 6 . 13 31 56 . . . 20 27 91 51 . Hits 493 | . 16 8 104 15 . 43 73 33 . . . 15 22 85 79 . Melee 1 | . . . 1 . . . . . . . . . . . . . Projectile 492 | . 16 8 103 15 . 43 73 33 . . . 15 22 85 79 . Critical Strikes 11 | . . . 2 . . 2 3 1 . . . . 1 . 2 . Damage Taken 7322 | . 214 63 1192 191 . 684 1065 671 . . . 254 246 1384 1350 8 Core 2170 | . 23 13 66 10 . 51 161 306 . . . 81 19 620 820 . Absorbed by Shields 43 | . . . . . . . . . . . . . . 43 . . Core Remaining (%) 58 | 100 . 85 . . . 68 70 . . . . 44 . 24 18 . Volleys Fired 272 | . 27 5 96 13 . 30 74 26 . . . . . . 1 . Largest 2 | . 2 2 2 2 . 2 2 1 . . . . . . 2 . Hottest 46 | . 40 40 46 46 . 46 46 20 . . . . . . 46 . Shots Fired 488 | . 54 10 192 26 . 60 118 26 . . . . . . 2 . Gun 488 | . 54 10 192 26 . 60 118 26 . . . . . . 2 . Cannon . | . . . . . . . . . . . . . . . . . Launcher . | . . . . . . . . . . . . . . . . . Special . | . . . . . . . . . . . . . . . . . Kinetic 488 | . 54 10 192 26 . 60 118 26 . . . . . . 2 . Thermal . | . . . . . . . . . . . . . . . . . Explosive . | . . . . . . . . . . . . . . . . . Electromagnetic . | . . . . . . . . . . . . . . . . . Robot Hit Streak 16 | . 9 6 13 5 . 14 16 3 . . . . . . 3 . Robot Miss Streak 5 | . 3 2 5 3 . 3 4 4 . . . . . . . . Penetration Max . | . . . . . . . . . . . . . . . . . Secondary Targets 7 | . 1 2 3 . . . . . . . . . . . 1 . Max Gunslinging Chain 1 | . 1 1 1 . . . . . . . . . . . 1 . Shots Hit Robots 362 | . 40 6 129 13 . 47 78 27 . . . . 6 3 13 . Core Hits 143 | . 14 3 58 7 . 12 28 8 . . . . 3 2 8 . Critical Kills . | . . . . . . . . . . . . . . . . . Critical Parts Destroyed 6 | . 3 . 1 . . . 1 1 . . . . . . . . Critical Strikes 7 | . 3 . 1 . . . 1 1 . . . . . . 1 . Destroy 5 | . 3 . 1 . . . 1 . . . . . . . . . Smash 1 | . . . . . . . . 1 . . . . . . . . Sever 1 | . . . . . . . . . . . . . . . 1 . Melee Attacks 127 | . . . 2 . . . 6 30 . . . 4 49 9 27 . Impact 28 | . . . 2 . . . 6 20 . . . . . . . . Slashing 91 | . . . . . . . . 9 . . . 4 49 9 20 . Piercing 7 | . . . . . . . . . . . . . . . 7 . Sneak Attacks 13 | . . . . . . . . 6 . . . . 4 1 2 . Combat Hostiles 1 | . . . . . . . . . . . . . . . 1 . Follow-up Attacks . | . . . . . . . . . . . . . . . . . Damage Inflicted 6383 | . 532 77 1648 192 . 650 1024 1024 . . . . 390 351 478 17 Guns 4324 | . 532 77 1648 192 . 650 1024 167 . . . . . . 34 . Cannons . | . . . . . . . . . . . . . . . . . Explosions 293 | . . . . . . . . 118 . . . . . 175 . . Melee 1746 | . . . . . . . . 739 . . . . 390 176 441 . Ramming 20 | . . . . . . . . . . . . . . . 3 17 Kinetic 4324 | . 532 77 1648 192 . 650 1024 167 . . . . . . 34 . Thermal 293 | . . . . . . . . 118 . . . . . 175 . . Explosive . | . . . . . . . . . . . . . . . . . Electromagnetic . | . . . . . . . . . . . . . . . . . Impact 335 | . . . . . . . . 335 . . . . . . . . Slashing 1273 | . . . . . . . . 404 . . . . 390 176 303 . Piercing 138 | . . . . . . . . . . . . . . . 138 . Highest Corruption 6 | . . . . . . . . . . . . . 4 6 1 4 Average Corruption 3 | . . . . . . . . . . . . . 4 4 1 4 Corruption Purged . | . . . . . . . . . . . . . . . . . Corruption Blocked . | . . . . . . . . . . . . . . . . . Effects 10 | . . . . . . . . . . . . . 4 6 . . Message Errors 3 | . . . . . . . . . . . . . . 3 . . Matter Fused 2 | . . . . . . . . . . . . . 1 1 . . Heat Flow Errors 3 | . . . . . . . . . . . . . 2 1 . . Energy Discharges 1 | . . . . . . . . . . . . . 1 . . . Data Loss (minor) 1 | . . . . . . . . . . . . . . 1 . . Overload Shots . | . . . . . . . . . . . . . . . . . Overflow Damage 570 | . . . . . . . . 386 . . . . 73 57 54 . Projectiles . | . . . . . . . . . . . . . . . . . Explosions 110 | . . . . . . . . 76 . . . . . 34 . . Melee 460 | . . . . . . . . 310 . . . . 73 23 54 . Knockbacks . | . . . . . . . . . . . . . . . . . Impact . | . . . . . . . . . . . . . . . . . Kinetic . | . . . . . . . . . . . . . . . . . Secondary . | . . . . . . . . . . . . . . . . . Self-Inflicted Damage 355 | . . . . . . . . 232 . . . . . 114 1 8 Shots 5 | . . . . . . . . 4 . . . . . 1 . . Rammed 2 | . . . . . . . . . . . . . . . 1 1 Targets Rammed 2 | . . . . . . . . . . . . . . . 1 1 Kicked . | . . . . . . . . . . . . . . . . . Crushed . | . . . . . . . . . . . . . . . . . Highest Temperature 259 | . 7 . 138 119 . 219 79 21 . . . . 259 152 10 . Average Temperature 37 | . 3 . 30 42 . 77 21 6 . . . . 38 28 4 . Received Heat Transfer 1763 | . 123 . 495 75 . 234 324 87 . . . 27 84 242 72 . Siege Activations . | . . . . . . . . . . . . . . . . . Martial Activations . | . . . . . . . . . . . . . . . . . Shielding Activations . | . . . . . . . . . . . . . . . . . Robots Disrupted . | . . . . . . . . . . . . . . . . . Combat Hostiles . | . . . . . . . . . . . . . . . . . Robots Corrupted . | . . . . . . . . . . . . . . . . . Combat Hostiles . | . . . . . . . . . . . . . . . . . Parts Fried 2 | . . . . . . . . 2 . . . . . . . . Impact Corruptions 4 | . . . . . . . . 4 . . . . . . . . Robots Melted . | . . . . . . . . . . . . . . . . . Combat Hostiles . | . . . . . . . . . . . . . . . . . Parts Melted 1 | . . . . . . . . 1 . . . . . . . . Heat Transferred 200 | . . . . . . . . 100 . . . . . 100 . . Parts Sabotaged . | . . . . . . . . . . . . . . . . . Parts Stolen . | . . . . . . . . . . . . . . . . . Parts Stripped . | . . . . . . . . . . . . . . . . . Power Chain Reactions . | . . . . . . . . . . . . . . . . . Alert | -11 -10 -10 -9 -9 -9 -8 -8 -7 -7 -7 -7 -6 -6 -6 -5 -4 ------- Run | Yrd Mat Min Mat Min Exi Min Mat Fac Low Low Dat Pro Fac Ext Fac Fac Maximum Alert Level 2 | . . . 1 . . . 2 2 . . . . 2 . 1 . Low Security (%) 72 | 100 100 100 69 100 . 100 86 . . . . . 12 100 64 100 Level 1 17 | . . . 30 . . . 6 62 . . . . 20 . 35 . Level 2 9 | . . . . . . . 6 37 . . . . 66 . . . Level 3 . | . . . . . . . . . . . . . . . . . Level 4 . | . . . . . . . . . . . . . . . . . Level 5 . | . . . . . . . . . . . . . . . . . High Security . | . . . . . . . . . . . . . . . . . Max Security . | . . . . . . . . . . . . . . . . . Peak Influence 695 | . 55 70 256 118 . 74 554 666 . . . . 695 128 282 137 Initial 557 | . . 14 23 88 . . 7 258 . . . . 557 81 7 107 Average 139 | . 14 8 150 55 . 15 85 414 . . . . 489 28 120 121 Influence Increases 5103 | . 158 70 753 135 . 210 976 736 . . . 240 805 419 571 30 Destroy 0b10 Robot/C 1360 | . 100 60 460 100 . 120 180 . . . . . 20 180 140 . Destroy 0b10 Robot/NC 160 | . 15 . 55 . . . 25 35 . . . . 10 15 5 . Destroy Leader 286 | . 22 10 122 20 . 30 50 . . . . . 10 2 20 . Allied During Kill 33 | . . . . . . . . . . . . . . 33 . . Successful Hack 134 | . 6 . 6 . . . 23 45 . . . . 18 . 36 . Disable Machine 285 | . 15 . 15 . . . . 150 . . . . 45 30 30 . Destroy Structure 100 | . . . 5 . . . 8 26 . . . . 27 24 10 . Advance Influence 450 | . . . . . . . . . . . . . 450 . . . Partial Spotted 270 | . . . . . . . 120 45 . . . . 45 15 15 30 Lose Combat Pursuer 2025 | . . . 90 15 . 60 570 435 . . . 240 180 120 315 . Influence Decreases 4986 | . 120 48 584 355 9 190 427 647 274 164 220 70 809 570 366 133 Entered New Map 1342 | . . 24 37 141 9 . 13 311 244 74 220 . 63 85 8 113 Time Decay 2394 | . 120 24 527 214 . 170 333 286 30 90 . 50 246 96 198 10 Search Patrol Dispatched 150 | . . . . . . . . . . . . . 150 . . . Lost Part 480 | . . . 20 . . 20 71 50 . . . 20 30 99 160 10 Lost Ally 224 | . . . . . . . 10 . . . . . 20 194 . . Purge Threat 396 | . . . . . . . . . . . . . 300 96 . . Squads Dispatched 19 | . . . 1 . . . 3 5 . . . . 4 . 5 1 Investigation 4 | . . . . . . . 1 2 . . . . . . 1 . Extermination 5 | . . . . . . . . 1 . . . . 2 . 2 . Reinforcement 10 | . . . 1 . . . 2 2 . . . . 2 . 2 1 Assault . | . . . . . . . . . . . . . . . . . Garrison . | . . . . . . . . . . . . . . . . . Intercept . | . . . . . . . . . . . . . . . . . Searches Triggered 1 | . . . . . . . . . . . . . 1 . . . Data Miner Redirects 1 | . . . . . . . . . . . . . . . 1 . Construction Impeded . | . . . . . . . . . . . . . . . . . Haulers Reinforced . | . . . . . . . . . . . . . . . . . Active Scanning Responses . | . . . . . . . . . . . . . . . . . Cargo Convoy Interrupts . | . . . . . . . . . . . . . . . . . Stealth | -11 -10 -10 -9 -9 -9 -8 -8 -7 -7 -7 -7 -6 -6 -6 -5 -4 --------- Run | Yrd Mat Min Mat Min Exi Min Mat Fac Low Low Dat Pro Fac Ext Fac Fac Distress Signals 19 | . . . 4 . . . 8 . . . . 1 1 5 . . Communications Jammed . | . . . . . . . . . . . . . . . . . Distress Signals . | . . . . . . . . . . . . . . . . . Times Spotted 278 | . 7 3 40 6 . 10 63 41 . . . 26 22 22 35 3 Peak Tracking Total 16 | . 3 2 6 3 . 6 16 9 . . . 9 6 8 7 4 Tactical Retreats 51 | . . . 3 1 . 1 14 8 . . . 4 6 6 8 . Traps | -11 -10 -10 -9 -9 -9 -8 -8 -7 -7 -7 -7 -6 -6 -6 -5 -4 ------- Run | Yrd Mat Min Mat Min Exi Min Mat Fac Low Low Dat Pro Fac Ext Fac Fac Traps Triggered 12 | . . . 1 . . . 1 2 . . . . 3 4 1 . Indirectly . | . . . . . . . . . . . . . . . . . Trap Hack Attempts . | . . . . . . . . . . . . . . . . . Triggered . | . . . . . . . . . . . . . . . . . Disarmed . | . . . . . . . . . . . . . . . . . Reprogrammed . | . . . . . . . . . . . . . . . . . Reused . | . . . . . . . . . . . . . . . . . Traps Extracted . | . . . . . . . . . . . . . . . . . Installed . | . . . . . . . . . . . . . . . . . Triggered . | . . . . . . . . . . . . . . . . . Machines | -11 -10 -10 -9 -9 -9 -8 -8 -7 -7 -7 -7 -6 -6 -6 -5 -4 ---------- Run | Yrd Mat Min Mat Min Exi Min Mat Fac Low Low Dat Pro Fac Ext Fac Fac Machines Disabled 19 | . 1 . 1 . . . . 10 . . . . 3 2 2 . Max in Single Turn 8 | . 1 . 1 . . . . 8 . . . . 1 1 1 . Garrison Access 1 | . . . . . . . 1 . . . . . . . . . Energy Cycler 3 | . . . . . . . . . . . . . . 3 . . Machines Repaired . | . . . . . . . . . . . . . . . . . Machines Dismantled . | . . . . . . . . . . . . . . . . . Machines Sabotaged . | . . . . . . . . . . . . . . . . . Overloaded Fab Kills . | . . . . . . . . . . . . . . . . . Hacking | -11 -10 -10 -9 -9 -9 -8 -8 -7 -7 -7 -7 -6 -6 -6 -5 -4 --------- Run | Yrd Mat Min Mat Min Exi Min Mat Fac Low Low Dat Pro Fac Ext Fac Fac Machines Accessed 39 | . 2 1 1 . 1 . 5 10 1 . 3 . 8 1 6 . Terminals 20 | . 2 . 1 . . . 4 4 . . . . 4 1 4 . Fabricators 7 | . . . . . . . . 3 . . . . 3 . 1 . Repair Stations 5 | . . . . . . . . 3 . . . . 1 . 1 . Recycling Units . | . . . . . . . . . . . . . . . . . Scanalyzers . | . . . . . . . . . . . . . . . . . Garrison Access 1 | . . . . . . . 1 . . . . . . . . . Total Hacks 87 | . 6 1 1 . 1 . 7 21 1 . 19 . 17 1 12 . Successful 52 | . 1 1 1 . 1 . 5 7 1 . 19 . 10 1 5 . Failed 35 | . 5 . . . . . 2 14 . . . . 7 . 7 . Catastrophic 3 | . 1 . . . . . . . . . . . . . 2 . Database Lockouts . | . . . . . . . . . . . . . . . . . Manual 47 | . 6 . 1 . . . 6 11 . . . . 14 1 8 . Terminals 38 | . 6 . 1 . . . 6 6 . . . . 12 1 6 . Fabricators 14 | . . . . . . . . 7 . . . . 4 . 3 . Repair Stations 12 | . . . . . . . . 8 . . . . 1 . 3 . Recycling Units . | . . . . . . . . . . . . . . . . . Scanalyzers . | . . . . . . . . . . . . . . . . . Garrison Access 1 | . . . . . . . 1 . . . . . . . . . Terminal Hacks 35 | . . 1 . . 1 . 2 2 1 . 19 . 5 1 3 . Record 3 | . . . . . 1 . . . . . 2 . . . . . Part Schematic 10 | . . . . . . . . . . . 10 . . . . . Robot Schematic 4 | . . . . . . . . . . . 4 . . . . . Prototype ID Bank 3 | . . . . . . . . . . . 3 . . . . . Open Door 2 | . . 1 . . . . . . 1 . . . . . . . Level Access Points 1 | . . . . . . . 1 . . . . . . . . . Branch Access Points 4 | . . . . . . . 1 1 . . . . 1 . 1 . Repair Station Index 2 | . . . . . . . . . . . . . 1 . 1 . Recycling Unit Index 1 | . . . . . . . . . . . . . 1 . . . Unreport Threat 3 | . . . . . . . . . . . . . 2 1 . . Registered Components 2 | . . . . . . . . 1 . . . . . . 1 . Fabricator Hacks 2 | . . . . . . . . 1 . . . . 1 . . . Network Status 2 | . . . . . . . . 1 . . . . 1 . . . Repair Station Hacks 2 | . . . . . . . . 1 . . . . 1 . . . Refit 2 | . . . . . . . . 1 . . . . 1 . . . Recycling Unit Hacks . | . . . . . . . . . . . . . . . . . Scanalyzer . | . . . . . . . . . . . . . . . . . Garrison Access Hacks 1 | . . . . . . . 1 . . . . . . . . . Seal Access 1 | . . . . . . . 1 . . . . . . . . . Unauthorized Hacks 12 | . 1 . 1 . . . 2 3 . . . . 3 . 2 . Terminals 7 | . 1 . 1 . . . 2 1 . . . . 1 . 1 . Assimilate 2 | . . . . . . . 1 . . . . . 1 . . . Botnet 1 | . . . . . . . . 1 . . . . . . . . Operators 4 | . 1 . 1 . . . 1 . . . . . . . 1 . Fabricators 5 | . . . . . . . . 2 . . . . 2 . 1 . Fabnet 5 | . . . . . . . . 2 . . . . 2 . 1 . Repair Stations . | . . . . . . . . . . . . . . . . . Recycling Units . | . . . . . . . . . . . . . . . . . Scanalyzers . | . . . . . . . . . . . . . . . . . Garrison Access . | . . . . . . . . . . . . . . . . . Data Cores Recovered 2 | . . . 1 . . . 1 . . . . . . . . . Used 1 | . . . . . . . 1 . . . . . . . . . Hacking Detections 21 | . 2 . 1 . . . 1 7 . . . . 4 1 5 . Full Trace Events 3 | . . . . . . . . 2 . . . . . . 1 . Feedback Events . | . . . . . . . . . . . . . . . . . Feedback Blocked . | . . . . . . . . . . . . . . . . . Robot Schematics Acquired 4 | . . . . . . . . . . . 4 . . . . . Robots Built . | . . . . . . . . . . . . . . . . . Authchips . | . . . . . . . . . . . . . . . . . Time . | . . . . . . . . . . . . . . . . . Total Robot Build Rating . | . . . . . . . . . . . . . . . . . Part Schematics Acquired 10 | . . . . . . . . . . . 10 . . . . . Parts Built . | . . . . . . . . . . . . . . . . . Authchips . | . . . . . . . . . . . . . . . . . Time . | . . . . . . . . . . . . . . . . . Total Part Build Rating . | . . . . . . . . . . . . . . . . . Parts Repaired . | . . . . . . . . . . . . . . . . . Time . | . . . . . . . . . . . . . . . . . Parts Recycled . | . . . . . . . . . . . . . . . . . Recycled Matter . | . . . . . . . . . . . . . . . . . Retrieved Matter . | . . . . . . . . . . . . . . . . . Retrieved Components . | . . . . . . . . . . . . . . . . . Parts Scanalyzed . | . . . . . . . . . . . . . . . . . Part Schematics Acquired . | . . . . . . . . . . . . . . . . . Parts Damaged . | . . . . . . . . . . . . . . . . . Bothacking | -11 -10 -10 -9 -9 -9 -8 -8 -7 -7 -7 -7 -6 -6 -6 -5 -4 ------------ Run | Yrd Mat Min Mat Min Exi Min Mat Fac Low Low Dat Pro Fac Ext Fac Fac Used RIF Installer . | . . . . . . . . . . . . . . . . . Robots Hacked 4 | . . . . . . . . 1 . . . . 1 2 . . Non-combat 1 | . . . . . . . . 1 . . . . . . . . Combat 3 | . . . . . . . . . . . . . 1 2 . . Robot Hacks Applied 1 | . . . . . . . . 1 . . . . . . . . find_chute 1 | . . . . . . . . 1 . . . . . . . . Relay Couplers Released . | . . . . . . . . . . . . . . . . . Fabnet Peak Effective % 8 | . . . . . . . . . . . . 6 6 6 8 5 Autooverrided 3 | . . . . . . . . . . . . . 1 2 . . Robots Rewired 14 | . . . . . . . . . . . . . . 14 . . Allies Hacked . | . . . . . . . . . . . . . . . . . Hacks Repelled . | . . . . . . . . . . . . . . . . . Allies | -11 -10 -10 -9 -9 -9 -8 -8 -7 -7 -7 -7 -6 -6 -6 -5 -4 -------- Run | Yrd Mat Min Mat Min Exi Min Mat Fac Low Low Dat Pro Fac Ext Fac Fac Total Allies 18 | . . . . . . . 1 . . . . . 1 16 . . Largest Group 6 | . . . . . . . 1 . . . . . 1 6 . . Highest-Rated Group 175 | . . . . . . . 10 . . . . . 32 175 . . Highest-Rated Ally 85 | . . . . . . . 10 . . . . . 32 85 . . Total Orders . | . . . . . . . . . . . . . . . . . Ally Attacks 79 | . . . . . . . . . . . . . 1 78 . . Total Damage 1598 | . . . . . . . . . . . . . 25 1573 . . Kills 9 | . . . . . . . . . . . . . . 9 . . Allies Corrupted . | . . . . . . . . . . . . . . . . . Allies Melted . | . . . . . . . . . . . . . . . . . Intel | -11 -10 -10 -9 -9 -9 -8 -8 -7 -7 -7 -7 -6 -6 -6 -5 -4 ------- Run | Yrd Mat Min Mat Min Exi Min Mat Fac Low Low Dat Pro Fac Ext Fac Fac Active Infowar (turns) 1333 | . . . . . . . . 22 77 180 25 126 321 376 206 . Sensors 1333 | . . . . . . . . 22 77 180 25 126 321 376 206 . Robot Analysis Total . | . . . . . . . . . . . . . . . . . Derelict Logs Recovered 2 | . . . . . . . . . 1 1 . . . . . . Drone Launches . | . . . . . . . . . . . . . . . . . Drone Recoveries . | . . . . . . . . . . . . . . . . . Exploration | -11 -10 -10 -9 -9 -9 -8 -8 -7 -7 -7 -7 -6 -6 -6 -5 -4 ------------- Run | Yrd Mat Min Mat Min Exi Min Mat Fac Low Low Dat Pro Fac Ext Fac Fac Turns Passed 7673 | 92 545 258 1668 443 200 894 1117 628 77 180 25 157 523 387 444 35 Spaces Moved 8178 | 66 256 150 726 253 126 212 1035 1374 290 376 97 489 1007 695 960 66 Core 282 | 28 . . . . . . 2 . . . . . . 23 163 66 Treads 1888 | 38 256 150 726 253 126 212 127 . . . . . . . . . Legs . | . . . . . . . . . . . . . . . . . Wheels . | . . . . . . . . . . . . . . . . . Hover . | . . . . . . . . . . . . . . . . . Flight 6008 | . . . . . . . 906 1374 290 376 97 489 1007 672 797 . Fastest Speed 23 | 50 160 160 160 160 160 160 28 26 26 26 26 26 24 25 23 50 Average Speed 59 | 113 160 160 160 160 160 160 50 27 26 26 26 26 25 30 32 50 Slowest Speed 500 | 160 160 160 160 160 160 160 500 30 26 26 26 27 106 120 150 50 Overloaded Moves . | . . . . . . . . . . . . . . . . . Propulsion Burnouts . | . . . . . . . . . . . . . . . . . Robots Hopped 101 | . . . . . . . 22 22 3 . . . 14 24 16 . Potential Cave-ins 19 | . . . . . . . . . . . . . 11 . 8 . Cave-ins Triggered . | . . . . . . . . . . . . . . . . . Exploration Rate (%) 45 | 3 39 36 59 52 49 55 82 41 51 49 74 65 31 59 30 1 Regions Visited 16 Branch Regions 9 Pre-discovered Areas 2 | . . . . . 1 . . . . . 1 . . . . . Known Exits Taken 9 | . . . . . . . 1 1 1 1 1 1 1 1 1 . Unknown Exits Taken 7 | 1 1 1 1 1 1 1 . . . . . . . . . . Scrap Searched 2 | . . 1 . . . . . . . . . 1 . . . . Spaces Dug 71 | . . . 2 . . . 6 8 . . . 4 39 3 9 . Terrain Destroyed 106 | . . . 2 . . . 6 25 . . . 4 39 21 9 . Melee 71 | . . . 2 . . . 6 8 . . . 4 39 3 9 . Projectile . | . . . . . . . . . . . . . . . . . AOE 35 | . . . . . . . . 17 . . . . . 18 . . Terrain Rammed . | . . . . . . . . . . . . . . . . . Walls Destroyed . | . . . . . . . . . . . . . . . . . Machines Disabled . | . . . . . . . . . . . . . . . . . Actions | -11 -10 -10 -9 -9 -9 -8 -8 -7 -7 -7 -7 -6 -6 -6 -5 -4 --------- Run | Yrd Mat Min Mat Min Exi Min Mat Fac Low Low Dat Pro Fac Ext Fac Fac Total 10242 | 83 342 159 1056 271 125 719 1494 1532 287 457 96 511 1187 830 1026 67 Wait 1332 | . 31 . 156 6 . 476 370 50 . 82 . 17 108 21 15 . Move 7966 | 65 255 149 725 252 125 211 990 1330 283 375 96 488 978 651 927 66 Hop 95 | . . . . . . . 22 21 3 . . . 14 19 16 . Pick Up 85 | 12 15 . 16 . . . 8 11 1 . . 1 11 3 7 . Fast Attach 33 | . . 2 7 . . . 5 1 . . . . 3 3 12 . Attach 75 | 6 3 . 4 . . 2 12 16 . . . 1 11 11 9 . Detach 15 | . 1 1 . . . . . 5 . . . . 2 3 3 . Swap 30 | . 3 . 24 . . . . 1 . . . . 2 . . . Drop 60 | . 7 2 26 . . . 7 5 . . . . 9 1 3 . Fire 272 | . 27 5 96 13 . 30 74 26 . . . . . . 1 . Melee 127 | . . . 2 . . . 6 30 . . . 4 49 9 27 . Ram 2 | . . . . . . . . . . . . . . . 1 1 Kick . | . . . . . . . . . . . . . . . . . Crush . | . . . . . . . . . . . . . . . . . Escape Stasis 95 | . . . . . . . . 36 . . . . . 54 5 . Rewire 55 | . . . . . . . . . . . . . . 55 . . Trap . | . . . . . . . . . . . . . . . . . Miscellaneous . | . . . . . . . . . . . . . . . . . Route ------- -11/Scrapyard -10/Materials (discovered 2 exits: *Mat / *Min) -10/Mines -9/Materials (discovered 2 exits: [*Min] / [*Sto]) -9/Mines -9/Exiles -8/Mines -8/Materials (discovered 3 exits: *Fac x3) -7/Factory (discovered 3 exits: *Fac / *Low x2) -7/Lower Caves -7/Lower Caves (discovered 2 exits: *Fac / *Dat) -7/Data Miner -6/Proximity Caves -6/Factory (discovered 5 exits: *Fac / Low x2 / *Ext x2) -6/Extension -5/Factory (discovered 3 exits: *Fac / Upp x2) -4/Factory History --------- Turn | Location | Event 6 | -11/Scrapyard | Discovered new exit (range 13) 93 | -11/Scrapyard | Entered Materials 238 | -10/Materials | Discovered new exit (range 16) 300 | -10/Materials | Build established: Mutant 548 | -10/Materials | Discovered new exit (range 16) 638 | -10/Materials | Entered Mines 646 | -10/Mines | Met a Derelict bent on vengeance 707 | -10/Mines | Found the Drone Emporium 714 | -10/Mines | Found Prototype Device 714 | -10/Mines | Identified Sensor Drone Bay 879 | -10/Mines | Discovered new exit (range 12) 896 | -10/Mines | Entered Materials 896 | -9/Materials | Evolved 2 slots: Propulsion x1, Utility x1 1464 | -9/Materials | Discovered new exit (range 16) 1876 | -9/Materials | Build established: Scavenger-Mutant 2131 | -9/Materials | Discovered new exit (range 4) 2564 | -9/Materials | Entered Mines 2939 | -9/Mines | A weapon hastily lodged in a ceiling crevice suddenly fell to the ground 2999 | -9/Mines | Deemed a non-threat by the Exiles lab entrance 3001 | -9/Mines | Discovered new exit (range 5) 3007 | -9/Mines | Entered Exiles 3046 | -9/Exiles | Met 8R-AWN 3073 | -9/Exiles | Met EX-HEX 3135 | -9/Exiles | Met EX-DEC 3145 | -9/Exiles | Learned location of Zion (-6) 3193 | -9/Exiles | Discovered new exit (range 11) 3207 | -9/Exiles | Entered Mines 3981 | -8/Mines | Discovered new exit (range 2) 4101 | -8/Mines | Entered Materials 4101 | -8/Materials | Evolved 2 slots: Propulsion x1, Utility x1 4193 | -8/Materials | Build established: Mutant 4411 | -8/Materials | Lost 3 parts (1p1u1w) 5144 | -8/Materials | Identified exit to Factory 5218 | -8/Materials | Entered Factory 5218 | -7/Factory | Evolved 2 slots: Utility x2 5234 | -7/Factory | Discovered new exit (range 5) 5239 | -7/Factory | Build established: Hacker-Sprinter 5734 | -7/Factory | Identified exit to Lower Caves 5846 | -7/Factory | Entered Lower Caves 5872 | -7/Lower Caves | Learned Factory terminal intel 5920 | -7/Lower Caves | Discovered new exit (range 13) 5922 | -7/Lower Caves | Identified exit to Lower Caves 5923 | -7/Lower Caves | Entered another Lower Caves area 5940 | -7/Lower Caves | Discovered new exit (range 16) 6099 | -7/Lower Caves | Discovered new exit (range 14) 6103 | -7/Lower Caves | Identified exit to Data Miner 6103 | -7/Lower Caves | Entered Data Miner 6103 | -7/Data Miner | Discovered new exit (range 6) 6108 | -7/Data Miner | Met Data Miner 6119 | -7/Data Miner | Learned location of Section 7 (-3) 6119 | -7/Data Miner | Acquired the access code to Warlord's prototype stash 6121 | -7/Data Miner | Received God Mode back door access code from Data Miner 6128 | -7/Data Miner | Identified exit to Proximity Caves 6128 | -7/Data Miner | Entered Proximity Caves 6179 | -6/Proximity Caves | Spotter reported a threat 6237 | -6/Proximity Caves | Spotter reported a threat 6251 | -6/Proximity Caves | Spotter reported a threat 6253 | -6/Proximity Caves | Core integrity fell below 50% 6284 | -6/Proximity Caves | Discovered new exit (range 5) 6285 | -6/Proximity Caves | Identified exit to Factory 6285 | -6/Proximity Caves | Entered Factory 6285 | -6/Factory | Evolved 2 slots: Propulsion x1, Utility x1 6286 | -6/Factory | Identified exit to Lower Caves 6287 | -6/Factory | Loaded intel: 28 terminal locations 6328 | -6/Factory | Identified exit to Extension 6415 | -6/Factory | Discovered new exit (range 12) 6419 | -6/Factory | Identified exit to Factory 6635 | -6/Factory | Search patrols dispatched 6808 | -6/Factory | Entered Extension 6841 | -6/Extension | Local machine network offline 6852 | -6/Extension | Energy Cycler disabled 6858 | -6/Extension | Rescued a captive Derelict 6910 | -6/Extension | Lost 8 parts (1p5n1u1w) 7052 | -6/Extension | Lost 4 allies 7088 | -6/Extension | Lost 6 parts (1p3n1u1w) 7127 | -6/Extension | Lost 3 allies 7174 | -6/Extension | Spotted B-75 Beast 7175 | -6/Extension | Spotted B-75 Beast 7176 | -6/Extension | Discovered exit to Factory (range 10) 7185 | -6/Extension | Core integrity fell below 50% 7186 | -6/Extension | Extracted ID and sensor layout for unrecognized location from A7's data core 7195 | -6/Extension | Entered Factory 7195 | -5/Factory | Evolved 2 slots: Utility x2 7215 | -5/Factory | Lost 4 parts (3n1u) 7252 | -5/Factory | Incoming investigation squad redirected 7335 | -5/Factory | Lost 4 parts (3u1w) 7369 | -5/Factory | Identified exit to Upper Caves 7458 | -5/Factory | Core integrity fell below 50% 7499 | -5/Factory | Lost 3 parts (1p1n1w) 7615 | -5/Factory | Lost 4 parts (1p2n1u) 7632 | -5/Factory | Core integrity fell below 20% 7633 | -5/Factory | Discovered new exit (range 15) 7638 | -5/Factory | Identified exit to Factory 7639 | -5/Factory | Entered another Factory area 7639 | -4/Factory | Evolved 2 slots: Propulsion x1, Utility x1 7674 | -4/Factory | Self-destructed Last Messages --------------- VTOL Module destroyed. ALERT: Security rotation in progress. Spear destroyed. T-07 Excavator destroyed. EXIT=FOUND ALERT: Potential suspicious activity detected, Programmers report to Factory Zone 5S. VTOL Module destroyed. EXIT=IDENTIFIED: FACTORY PARAMETERS=PROPULSION+1,UTILITY+1 LOCATION=FACTORY GOAL=ESCAPE O-32 Director: "IFF HANDSHAKE FAILED. SECURING TERMINAL." ALERT: All DSF locations entering lockdown mode. Slammed into O-32 Director. Hacking Suite destroyed. System corrupted by crushing effect (+4). ALERT: Hostiles spotted, dispatching reinforcements to Terminal F012. Map ----- +----------------------------------------------------+ | ??????????????????????# #????????????????????? | | ??????????????????????# #????????????????????? | | ??????????????????????# #????????????????????? | | ??????????????????????# ##############???????? | | ??????????????????????# # #???????? | | ??????????????????????# # """"" #???????? | | ??????????????????????# # ""T"" #???????? | | ??????????????????????# # #???????? | | ??????????????????????# # """ !!= #???????? | | ??????????????????????# # """ !% #???????? | | ??????????????????????# + """ != #???????? | | ??????????????????????# # #???????? | | ?????????????#######??# # """ """ #???????? | | ?????????????# """""?# # """ """ #???????? | | ?????????????# ""T""?# % # """ """ #???????? | | ?????????????# # # #???????? | | ?????????????# # ##############???????? | | ?????????????# + #????????????????????? | | ?????????????# """ # #????????????????????? | | ?????????????? """"" # #????????????????????? | | ????????????????"""" ?# #????????????????????? | | ???????????????? ?# #????????????????????? | | ???????????????######## #????????????????????? | | ???????????????# #????????????????????? | | ???????????????# #????????????????????? | | ???????????????# @ #????????????????????? | | ???????????????# #????????????????????? | | ???????????????# #????????????????????? | | ???????????????# ########????????????????????? | | ???????????????# ????????????????????????????? | | ?????????????? ????????????????????????????? | | ????????????g g ?????????????????????????????? | | ????????????" "?????????????????????????????? | | ????????????" "?????????????????????????????? | | ????????????? ???????????????????????????????? | | ??????????????? ???????????????????????????????? | | ?????????????????????????????????????????????????? | | ?????????????????????????????????????????????????? | | ?????????????????????????????????????????????????? | | ?????????????????????????????????????????????????? | | ?????????????????????????????????????????????????? | | ?????????????????????????????????????????????????? | | ?????????????????????????????????????????????????? | | ?????????????????????????????????????????????????? | | ?????????????????????????????????????????????????? | | ?????????????????????????????????????????????????? | | ?????????????????????????????????????????????????? | | ?????????????????????????????????????????????????? | | ?????????????????????????????????????????????????? | | ?????????????????????????????????????????????????? | +----------------------------------------------------+ Best States ------------- Heat Dissipation 43 Energy Generation 18 Energy Capacity 160 Matter Stores 300 Matter Capacity 300 Sight Range 16 Robot Scan Range 15 Terrain Scan Density 10 Armor Coverage 450 Evasion (%) 65 Recoil Reduction 3 Offensive Hacking 41 Item Schematics ----------------- Combat Drone Bay | -7/Data Miner | Free Lgt. Regenerative Plating | -7/Data Miner | Free Cld. Cesium-ion Thruster | -7/Data Miner | Free Gravity Neutralizer | -7/Data Miner | Free Com. Ion Cannon | -7/Data Miner | Free Antigrav System | -7/Data Miner | Free Imp. Component Analysis Suite | -7/Data Miner | Free Wave Gun | -7/Data Miner | Free Hardcell Cannon | -7/Data Miner | Free Lrn. Terrain Scanner | -7/Data Miner | Free Robot Schematics ------------------ Y-54 Guardian | -7/Data Miner | Free A-15 Conveyor | -7/Data Miner | Free B-48 Gladiator | -7/Data Miner | Free L-41 Fighter | -7/Data Miner | Free Fabricated ------------ Nothing Repaired ---------- Nothing Alien Tech Used ----------------- None Achievements -------------- None Challenges ------------ None Game ------ Seed BombArcScreen Manual? 0 Play Time 01:28:21 Cumulative 233.0 hours Start 2025.09.18 @ 13:14:51 End 2025.09.18 @ 14:49:59 Sessions 1 Manual Loads 0 Difficulty Rogue Special Mode None Game No. 203 Rogue 203 Adventurer 0 Explorer 0 Win Type - Total 13 Types 7/0/2/2/1/0/0/0/0/1 Lore% 93 Gallery% 86 Achievement% 75 Wizard Run 0 Options --------- Layout 1 ASCII 0 Keyboard 0 Movement Numpad Keybinds 0 Fullscreen 1 Font 24/Proggy Map View 50x35 Zoom Use 0% Tactical HUD 0 Map Filters NONE Filters NONE Steam 1 RUN: 4a9fe424-c416-4d9a-b07d-0e3d64baa978